bitfinex-derivatives/quotes_ETHF0:USTF0_20250614
["timestamp","ask_amount","ask_price","bid_price","bid_amount"]
[1749928042424,9.00362,2512.2,2512.1,0.00597479]
[1749928042620,10.09116434,2512.2,2512.1,0.00597479]
[1749928042824,1.98965,2512.1,2511.5,3.2078]
[1749928043020,0.79599,2511.7,2511.5,3.2078]
[1749928043428,0.79599,2511.7,2511.6,0.79599]
[1749928043631,0.79601,2511.6,2511.5,3.2078]
[1749928044029,0.79607,2511.4,2511.3,0.00597479]
[1749928045239,0.79607,2511.4,2511.3,0.80207479]
[1749928045441,1.2731,2511.6,2511.3,0.00597479]
[1749928045741,0.79607,2511.4,2511.3,0.00597479]
[1749928046039,6.782,2511.7,2511.3,0.00597479]
[1749928046238,0.79601,2511.6,2511.5,0.79603]
[1749928046540,0.79596,2511.8,2511.7,0.79598]
[1749928047043,6.78,2512.1,2511.7,0.79598]
[1749928047242,1.08786435,2512.0,2511.7,0.79598]
[1749928047443,0.79594,2511.8,2511.7,0.79598]
[1749928048430,1.3293,2512.0,2511.7,0.79598]
[1749928048743,0.79592,2511.9,2511.8,0.79593]
[1749928049054,0.79598,2511.7,2511.6,4.00379]
[1749928049241,0.79596,2511.8,2511.7,0.79597]
[1749928049935,1.3293,2512.1,2511.6,3.2078]
[1749928050136,0.79592,2511.9,2511.8,0.79592]
[1749928050838,0.79585,2512.2,2512.1,0.79585]
[1749928051036,0.7959,2512.0,2511.9,0.7959]
[1749928051440,0.79586,2512.1,2512.0,0.79586]
[1749928051735,0.79582,2512.2,2512.1,0.79583]
[1749928052246,0.79582,2512.2,2512.1,0.79582]
[1749928052543,0.06809268,2512.4,2512.3,0.79579]
[1749928052741,0.06809268,2512.4,2512.3,4.00359]
[1749928055344,0.80165479,2512.7,2512.6,0.79569]
[1749928056744,0.79575,2512.4,2512.3,0.6399]
[1749928057047,0.79589,2512.0,2511.9,0.79591]
[1749928057247,0.79591,2511.9,2511.8,8.89663]
[1749928057441,0.79594,2511.8,2511.7,1.42926]
[1749928057745,0.79593,2511.9,2511.8,0.79594]
[1749928057945,0.7959,2512.0,2511.9,0.7959]
[1749928058249,0.06809268,2512.3,2511.9,3.2078]
[1749928058450,0.06809268,2512.3,2512.2,0.79582]
[1749928058641,0.79584,2512.2,2512.1,0.79584]
[1749928059449,0.79585,2512.1,2512.0,0.79586]
[1749928059647,0.79587,2512.1,2512.0,0.79587]
[1749928060350,0.79588,2512.0,2511.9,0.79589]
[1749928060549,0.06809268,2512.3,2511.7,8.7747]
[1749928060550,0.79594,2511.8,2511.7,0.6333]
[1749928060846,1.98966,2512.1,2511.6,4.00379]
[1749928060847,0.79598,2511.7,2511.6,3.2078]
[1749928061753,4.61528,2512.0,2511.5,0.79603]
[1749928061754,0.79603,2511.6,2511.5,0.79603]
[1749928061948,5.8333,2512.0,2511.4,3.2078]
[1749928062147,5.8333,2512.0,2511.4,4.5351]
[1749928062346,7.82305,2512.0,2511.4,4.5351]
[1749928062550,0.79602,2511.6,2511.5,0.79603]
[1749928062750,0.796,2511.7,2511.6,0.79601]
[1749928062947,5.8333,2512.0,2511.4,4.5351]
[1749928063149,0.796,2511.7,2511.5,0.79604]
[1749928063348,0.796,2511.7,2511.6,0.79601]
[1749928064359,0.79593,2511.9,2511.8,0.79594]
[1749928064860,0.6421,2512.0,2511.6,3.2078]
[1749928065160,0.79592,2511.9,2511.8,0.79592]
[1749928065458,0.79591,2511.9,2511.8,0.79594]
[1749928065960,1.43799,2512.0,2511.9,0.79591]
[1749928066161,2.52733073,2512.0,2511.9,0.79591]
[1749928066361,0.79592,2511.9,2511.8,0.79592]
[1749928067852,0.6421,2512.0,2511.9,0.79591]
[1749928068055,5.734,2512.2,2512.1,0.79585]
[1749928068256,5.734,2512.2,2511.8,0.79593]
[1749928068455,0.79589,2512.0,2511.9,0.79589]
[1749928068963,0.79586,2512.1,2512.0,0.79585]
[1749928070165,0.79588,2512.0,2511.9,4.00369]
[1749928070460,0.79588,2512.0,2511.9,0.79589]
[1749928070665,0.79594,2511.8,2511.7,0.6351]
[1749928070851,0.79594,2511.9,2511.8,0.79593]
[1749928071057,0.79594,2511.8,2511.7,0.6351]
[1749928072168,0.79601,2511.6,2511.5,7.57602]
[1749928072470,0.79601,2511.6,2511.5,6.78]
[1749928073071,0.79601,2511.6,2511.5,7.57604]
[1749928073963,5.80209268,2511.9,2511.5,6.78]
[1749928074168,5.80209268,2511.9,2511.5,7.57602]
[1749928074169,0.79601,2511.6,2511.5,7.57602]
[1749928074973,0.79601,2511.6,2511.5,6.78]
[1749928076071,0.6957,2511.8,2511.5,1.99011]
[1749928076263,5.80209268,2511.9,2511.8,0.79594]
[1749928076570,6.89358682,2511.9,2511.8,0.79594]
[1749928076771,5.80209268,2511.9,2511.8,0.79594]
[1749928076972,5.80209268,2511.9,2511.8,2.17434]
[1749928077173,6.59800268,2511.9,2511.8,2.17434]
[1749928077376,5.80209268,2511.9,2511.8,2.17434]
[1749928078066,0.79594,2511.8,2511.7,3.2078]
[1749928078372,0.796,2511.7,2511.5,0.79602]
[1749928078566,0.79601,2511.6,2511.5,0.79602]
[1749928078875,0.79601,2511.6,2511.4,0.79606]
[1749928079065,1.3506,2511.8,2511.5,0.79604]
[1749928079261,0.79601,2511.6,2511.5,0.79604]
[1749928079972,0.79607,2511.4,2511.3,2.18046479]
[1749928080167,0.79607,2511.4,2511.3,0.00597479]
[1749928080869,1.88764373,2511.4,2511.3,0.00597479]
[1749928081564,0.6669,2511.7,2511.3,0.00597479]
[1749928081767,0.6669,2511.7,2511.5,0.79602]
[1749928081969,0.79602,2511.6,2511.5,0.79602]
[1749928082570,0.06809268,2511.9,2511.4,5.19796]
[1749928082768,0.86402268,2511.9,2511.8,0.79594]
[1749928083072,0.06809268,2511.9,2511.8,0.79594]
[1749928083272,12.511,2512.6,2512.2,0.79579]
[1749928083273,0.79579,2512.3,2512.2,0.79579]
[1749928083573,0.79576,2512.4,2512.3,0.79576]
[1749928083873,1.09136626,2512.5,2512.1,3.2078]
[1749928084067,1.09136626,2512.5,2512.0,10.12705]
[1749928084068,0.00597479,2512.7,2512.6,0.79569]
[1749928084374,0.80165479,2512.7,2512.6,0.79569]
[1749928084574,0.00597479,2512.7,2512.6,0.79569]
[1749928084973,0.80163479,2512.7,2512.6,1.3604]
[1749928085178,0.00597479,2512.7,2512.6,2.15609]
[1749928086078,0.80163479,2512.7,2512.6,1.3604]
[1749928086569,0.79571,2512.6,2512.4,4.00354]
[1749928086775,0.00597479,2512.7,2512.4,3.2078]
[1749928086976,0.79571,2512.6,2512.4,3.2078]
[1749928087176,0.00597479,2512.7,2512.4,3.2078]
[1749928087378,0.79569,2512.6,2512.5,2.08099]
[1749928087676,0.79569,2512.6,2512.5,1.2853]
[1749928088075,0.79578,2512.3,2512.2,7.4149]
[1749928088277,0.79578,2512.3,2512.2,8.21072]
[1749928088466,1.2542,2512.6,2512.2,8.21072]
[1749928088670,1.2542,2512.6,2512.2,7.4149]
[1749928088671,0.79578,2512.3,2512.2,7.4149]
[1749928088871,0.79574,2512.5,2512.3,0.79576]
[1749928089066,0.79585,2512.1,2512.0,3.2078]
[1749928089576,0.6743,2512.4,2512.0,4.00365]
[1749928089778,0.79585,2512.1,2512.0,4.00365]
[1749928090177,0.6743,2512.4,2512.0,4.00365]
[1749928090372,0.79584,2512.2,2512.0,4.00365]
[1749928090566,0.79585,2512.1,2512.0,4.00365]
[1749928090975,0.6743,2512.4,2512.3,0.79578]
[1749928091477,0.79575,2512.4,2512.3,4.00357]
[1749928091972,5.734,2512.6,2512.3,4.00357]
[1749928092173,0.79573,2512.5,2512.4,0.79575]
[1749928092371,5.734,2512.6,2512.5,0.79572]
[1749928092978,0.79572,2512.5,2512.4,7.57073]
[1749928093579,6.52972,2512.6,2512.5,0.79572]
[1749928093781,0.80166479,2512.7,2512.6,0.79569]
[1749928094180,0.80165479,2512.7,2512.4,6.775]
[1749928094481,0.00597479,2512.7,2512.6,4.00349]
[1749928094875,0.00597479,2512.7,2512.6,4.62979]
[1749928097982,0.00597479,2512.7,2512.6,9.62979]
[1749928098482,0.00597479,2512.7,2512.6,4.62979]
[1749928099272,5.734,2513.4,2512.8,1.98905]
[1749928099582,0.79545,2513.4,2513.3,0.79546]
[1749928099785,0.79548,2513.3,2513.2,0.79548]
[1749928099971,0.79546,2513.4,2513.3,0.79547]
[1749928100174,0.69277479,2513.6,2513.1,3.21377479]
[1749928100480,1.48814479,2513.6,2513.5,0.7954]
[1749928100782,0.00597479,2513.6,2513.5,0.7954]
[1749928102473,0.00597479,2513.6,2513.5,2.7892]
[1749928102674,5.57649109,2514.3,2513.7,1.98829]
[1749928102885,2.36869109,2514.3,2513.8,11.3282]
[1749928103085,0.79519,2514.2,2513.8,11.3282]
[1749928103382,2.36869109,2514.3,2514.2,0.79518]
[1749928103772,2.36869109,2514.3,2514.2,7.56818]
[1749928104183,2.36869109,2514.3,2514.2,8.83428]
[1749928105583,0.16370082,2514.5,2514.4,0.79512]
[1749928105774,0.16370082,2514.5,2514.4,4.00292]
[1749928106476,0.95879082,2514.5,2514.4,3.2078]
[1749928106876,0.16370082,2514.5,2514.4,3.2078]
[1749928107086,0.16370082,2514.5,2514.4,4.00292]
[1749928107285,0.95879082,2514.5,2514.4,3.2078]
[1749928107786,0.79512,2514.4,2514.3,6.772]
[1749928107983,0.79521,2514.1,2514.0,0.6474]
[1749928108183,0.79521,2514.1,2513.5,0.6314]
[1749928108184,0.79537,2513.6,2513.5,6.767]
[1749928108485,0.79544,2513.4,2513.3,27.2788]
[1749928108683,3.8822,2513.8,2513.4,0.79543]
[1749928108885,0.79539,2513.6,2513.4,0.79543]
[1749928109285,3.8822,2513.8,2513.4,0.79541]
[1749928109582,0.7954,2513.5,2513.4,0.79541]
[1749928109787,0.79539,2513.6,2513.4,0.79542]
[1749928109987,0.79539,2513.6,2513.4,2.17942]
[1749928110186,3.8822,2513.8,2513.4,1.384]
[1749928110384,0.6744,2513.8,2513.6,3.2078]
[1749928110589,0.79529,2513.9,2513.8,0.79531]
[1749928110889,3.2078,2514.2,2513.7,1.3885]
[1749928111086,0.6375,2514.3,2514.1,3.2078]
[1749928111288,1.43268,2514.3,2514.1,4.003]
[1749928111594,0.16370082,2514.5,2514.4,0.79512]
[1749928111786,0.16370082,2514.5,2514.4,10.76892]
[1749928112089,0.16370082,2514.5,2514.4,15.76892]
[1749928112296,0.79488,2515.2,2514.9,0.79496]
[1749928112491,1.9816,2515.3,2514.8,10.76878]
[1749928112492,0.79491,2515.1,2514.8,10.76878]
[1749928112682,0.79488,2515.2,2514.9,0.79495]
[1749928112988,0.79487,2515.2,2514.9,0.79494]
[1749928113185,0.6375,2515.3,2515.1,3.2078]
[1749928113380,1.3203,2515.5,2515.4,0.7948]
[1749928113583,1.3203,2515.5,2515.3,0.79481]
[1749928113982,1.3203,2515.5,2515.4,0.79481]
[1749928114187,0.06809268,2515.2,2515.1,4.0027]
[1749928114405,0.06809268,2515.2,2515.1,5.3645]
[1749928115494,0.06809268,2515.2,2515.1,3.2078]
[1749928115693,0.7949,2515.1,2515.0,0.6668]
[1749928115989,0.86297268,2515.2,2515.0,8.22673]
[1749928116390,0.06809268,2515.2,2515.1,0.7949]
[1749928116794,0.06809268,2515.2,2515.1,5.312]
[1749928118993,0.79471,2515.7,2515.1,10.312]
[1749928119195,0.79474,2515.6,2515.4,4.00258]
[1749928119494,0.79474,2515.6,2515.5,7.55876]
[1749928119694,0.6495,2515.8,2515.6,0.79474]
[1749928119894,0.6495,2515.8,2515.5,7.55875]
[1749928119895,0.79473,2515.7,2515.5,7.55875]
[1749928120088,5.83120053,2516.2,2515.7,0.7947]
[1749928120089,0.63695053,2516.2,2515.7,0.7947]
[1749928120388,0.79468,2515.8,2515.6,1.44732]
[1749928120587,0.79468,2515.8,2515.7,0.79471]
[1749928120788,1.3747,2516.1,2515.6,0.6526]
[1749928121093,0.79474,2515.6,2515.5,7.55877]
[1749928121295,0.79481,2515.4,2515.3,6.763]
[1749928121589,3.2078,2515.8,2515.3,6.763]
[1749928121789,0.79476,2515.6,2515.4,0.79478]
[1749928122091,3.2078,2515.8,2515.2,6.763]
[1749928122092,1.3747,2515.7,2515.2,6.763]
[1749928122290,3.2078,2516.1,2515.2,11.95791]
[1749928122494,0.79469,2515.8,2515.4,1.98699]
[1749928122695,0.79468,2515.9,2515.7,0.79469]
[1749928122886,1.2928,2516.1,2515.7,0.79469]
[1749928122887,0.79468,2515.8,2515.7,0.79469]
[1749928123192,0.79464,2516.0,2515.9,0.79464]
[1749928123396,0.79466,2515.9,2515.8,0.79466]
[1749928123695,0.79463,2516.0,2515.9,0.79463]
[1749928124197,0.00925053,2516.2,2516.1,0.79458]
[1749928124489,0.00925053,2516.2,2515.7,3.2078]
[1749928124697,3.2078,2516.1,2515.8,6.763]
[1749928124897,3.2078,2516.1,2515.6,0.79471]
[1749928124898,0.79473,2515.7,2515.6,0.79474]
[1749928125092,0.79466,2515.9,2515.8,0.79466]
[1749928125292,0.79471,2515.7,2515.6,7.55772]
[1749928125492,0.79471,2515.7,2515.6,0.79472]
[1749928125692,0.79469,2515.8,2515.7,0.7947]
[1749928125887,1.9394,2516.0,2515.5,7.4082]
[1749928126198,0.79469,2515.8,2515.7,0.79469]
[1749928126391,0.79468,2515.9,2515.7,0.79469]
[1749928126592,1.9394,2516.0,2515.6,3.2078]
[1749928126593,0.00925053,2516.2,2515.6,3.2078]
[1749928126799,0.79465,2515.9,2515.8,0.79466]
[1749928127101,0.79466,2515.9,2515.8,0.79466]
[1749928128499,0.7947,2515.8,2515.7,0.79469]
[1749928129601,0.79471,2515.7,2515.6,9.9698]
[1749928130097,0.79471,2515.7,2515.6,10.76454]
[1749928130299,0.79471,2515.7,2515.6,9.9698]
[1749928130600,0.79471,2515.7,2515.6,10.76454]
[1749928131294,0.06809268,2515.9,2515.8,0.79468]
[1749928133500,0.06809268,2515.9,2515.8,2.17398]
[1749928139297,0.00925053,2516.2,2516.1,0.79458]
[1749928139498,2.36869109,2516.9,2516.1,0.79458]
[1749928139499,3.2078,2516.8,2516.2,1.98633]
[1749928139695,0.79444,2516.6,2516.3,3.2078]
[1749928139899,0.79442,2516.7,2516.3,4.5082]
[1749928140100,1.08249702,2516.6,2516.3,4.5082]
[1749928140301,1.08408979,2516.5,2516.4,0.79449]
[1749928140504,1.08408691,2516.5,2516.4,0.79449]
[1749928140905,1.08408691,2516.5,2516.4,7.55149]
[1749928141101,1.87854691,2516.5,2516.4,7.55149]
[1749928141296,0.79449,2516.4,2516.3,3.2078]
[1749928141598,1.08408691,2516.4,2516.3,10.75932]
[1749928141805,0.79447,2516.5,2516.4,0.79449]
[1749928142003,1.87965763,2516.5,2516.4,0.79449]
[1749928142198,0.79449,2516.4,2516.3,9.9648]
[1749928142402,0.79468,2515.8,2515.7,3.2078]
[1749928142708,1.08566414,2515.8,2515.4,1.4342]
[1749928142906,0.79475,2515.6,2515.5,0.79477]
[1749928143207,0.79477,2515.5,2515.3,6.757]
[1749928143406,1.3162,2515.6,2515.3,6.757]
[1749928143701,0.79479,2515.5,2515.3,6.757]
[1749928143907,0.79481,2515.4,2515.3,6.757]
[1749928144203,0.79487,2515.2,2515.1,0.00596279]
[1749928144708,1.2778,2515.3,2515.1,0.00596279]
[1749928145202,1.2778,2515.3,2515.1,0.80085279]
[1749928145707,2.07265,2515.3,2515.1,0.80084279]
[1749928145903,3.2078,2515.5,2515.1,0.00596279]
[1749928146106,1.08640056,2515.4,2515.3,0.79484]
[1749928146507,1.08640056,2515.4,2515.3,4.00264]
[1749928147008,1.88123056,2515.4,2515.2,0.79486]
[1749928147200,0.79486,2515.3,2515.1,7.55785279]
[1749928147708,0.79487,2515.2,2515.1,0.00596279]
[1749928148505,0.79487,2515.2,2515.1,0.80086279]
[1749928148704,5.79487,2515.2,2515.1,0.00596279]
[1749928148906,6.88090377,2515.2,2515.1,0.00596279]
[1749928149094,1.98726,2515.1,2514.5,0.79508]
[1749928149294,0.79505,2514.7,2514.6,0.79506]
[1749928149497,0.79506,2514.6,2514.5,0.79508]
[1749928149700,0.79506,2514.6,2514.4,6.758]
[1749928149701,0.79509,2514.6,2514.4,7.55312]
[1749928149896,0.79509,2514.5,2514.4,6.758]
[1749928150204,0.79515,2514.3,2514.2,0.00596279]
[1749928150705,1.88058092,2514.3,2514.2,0.00596279]
[1749928150907,1.08543092,2514.3,2514.2,0.00596279]
[1749928151211,3.2078,2514.5,2514.2,0.00596279]
[1749928151509,1.87947746,2514.4,2514.2,0.00596279]
[1749928151708,3.2078,2514.5,2514.2,0.00596279]
[1749928151904,11.875,2514.8,2514.3,0.79512]
[1749928152103,0.79508,2514.6,2514.3,0.79512]
[1749928152303,5.116,2514.8,2514.3,0.79512]
[1749928152509,0.79507,2514.6,2514.3,0.79512]
[1749928153110,0.79507,2514.6,2514.2,1.30786279]
[1749928153315,0.79507,2514.6,2514.3,0.79515]
[1749928153607,3.2078,2514.5,2514.2,0.00596279]
[1749928153809,0.79515,2514.3,2514.2,0.00596279]
[1749928154005,1.87832063,2514.3,2514.2,0.00079787]
[1749928154206,1.76047063,2514.3,2514.2,0.00079787]
[1749928154412,0.6773,2514.3,2514.2,0.00079787]
[1749928154616,0.6773,2514.3,2514.2,4.00378787]
[1749928155106,0.79504,2514.7,2514.4,0.79511]
[1749928155501,0.79504,2514.7,2514.2,3.20859787]
[1749928155708,4.00281,2514.8,2514.5,0.79509]
[1749928156114,4.00281,2514.8,2514.3,1.2614]
[1749928156115,3.2078,2514.8,2514.7,0.79503]
[1749928156317,1.48003,2515.0,2514.5,9.9668]
[1749928156611,1.48003,2515.0,2514.8,0.79498]
[1749928156612,0.6851,2515.0,2514.8,0.79498]
[1749928156812,0.6851,2515.0,2514.9,0.79496]
[1749928157013,0.79485,2515.3,2515.0,0.79492]
[1749928157404,3.8929,2515.4,2515.1,3.2078]
[1749928157405,0.6851,2515.4,2515.1,3.2078]
[1749928157605,0.79486,2515.3,2514.8,3.2078]
[1749928157804,0.79486,2515.3,2515.0,0.7949]
[1749928158008,1.47992,2515.4,2514.9,8.0757]
[1749928158205,3.8929,2515.4,2514.9,8.87065]
[1749928158407,0.79489,2515.2,2515.0,0.79493]
[1749928158616,1.2647,2515.3,2514.8,3.2078]
[1749928158910,0.7949,2515.2,2514.9,7.55496]
[1749928159114,1.2647,2515.3,2514.9,6.76]
[1749928159314,1.2647,2515.3,2514.6,1.9556]
[1749928159315,0.79498,2514.9,2514.6,1.43494]
[1749928159514,0.79498,2514.9,2514.6,1.43493]
[1749928159717,0.79498,2514.9,2514.7,0.79502]
[1749928160018,0.79503,2514.7,2514.6,0.6399]
[1749928160216,3.2078,2515.1,2514.6,0.6399]
[1749928160418,0.79507,2514.6,2514.4,9.9678]
[1749928160920,0.79508,2514.6,2514.4,6.76]
[1749928161121,0.79509,2514.5,2514.4,6.76]
[1749928161416,0.7951,2514.5,2514.3,0.79514]
[1749928161610,0.79515,2514.3,2514.2,0.00079787]
[1749928162016,5.79515,2514.3,2514.2,0.00079787]
[1749928162213,12.55515,2514.3,2514.2,0.00079787]
[1749928162518,12.83885004,2514.3,2513.4,6.76]
[1749928162718,0.7953,2513.9,2513.7,0.79532]
[1749928163215,0.79532,2513.8,2513.6,3.2078]
[1749928163417,0.79541,2513.5,2513.4,0.00596279]
[1749928163617,1.2944,2513.7,2513.4,0.00596279]
[1749928163923,0.79541,2513.5,2513.4,0.00596279]
[1749928165129,5.0,2513.5,2512.5,3.2078]
[1749928165326,18.33654,2513.8,2512.0,1.98966]
[1749928165327,3.2078,2513.0,2512.4,0.79574]
[1749928165529,3.2078,2513.0,2512.4,3.2078]
[1749928165530,1.377,2512.9,2512.4,3.2078]
[1749928165833,1.377,2512.9,2512.2,0.79581]
[1749928166028,0.79575,2512.5,2512.2,0.79581]
[1749928166325,0.79575,2512.5,2512.3,0.79578]
[1749928166732,0.00596279,2512.6,2512.1,4.51816279]
[1749928167035,0.79572,2512.5,2512.3,0.79577]
[1749928167228,0.79572,2512.5,2512.2,1.3044]
[1749928167229,0.79582,2512.2,2512.1,0.00596279]
[1749928168223,5.79582,2512.2,2511.8,3.2078]
[1749928168443,0.79591,2511.9,2511.8,3.2078]
[1749928169039,7.55591,2511.9,2511.8,3.2078]
[1749928169730,14.9678,2511.9,2511.3,3.2078]
[1749928169936,0.79607,2511.4,2511.3,3.2078]
[1749928170335,0.79612,2511.3,2511.1,0.79616]
[1749928170729,3.2078,2511.4,2510.9,0.00401518]
[1749928170932,0.00596279,2511.5,2510.9,0.00401518]
[1749928170933,4.004,2511.0,2510.9,0.00401518]
[1749928171140,3.2078,2511.0,2509.9,1.269]
[1749928171338,3.2078,2510.9,2510.1,5.199]
[1749928171537,3.2078,2510.9,2510.8,0.79626]
[1749928171937,3.2078,2511.2,2511.1,0.79617]
[1749928172443,4.00396,2511.2,2511.0,0.79619]
[1749928172830,3.2078,2511.2,2511.1,0.79617]
[1749928173437,3.2078,2511.2,2510.7,1.269]
[1749928173438,14.9698,2511.2,2510.5,0.6751]
[1749928173745,3.2078,2511.0,2510.5,0.6751]
[1749928173945,4.00401,2511.0,2510.8,0.79625]
[1749928174138,3.2078,2511.0,2510.9,2.18183]
[1749928176243,4.004,2511.0,2510.9,1.3856]
[1749928176444,4.00401,2511.0,2510.8,0.79625]
[1749928176744,9.9718,2511.0,2510.5,0.6751]
[1749928176941,3.2078,2510.6,2510.2,10.05147492]
[1749928177151,3.2078,2510.6,2510.2,3.28747492]
[1749928177339,0.79637,2510.5,2510.3,0.79639]
[1749928177843,0.79639,2510.4,2510.2,3.28747492]
[1749928178042,0.79638,2510.5,2510.3,0.79641]
[1749928178240,3.2078,2510.6,2510.2,3.28747492]
[1749928178439,3.2078,2511.1,2510.9,0.79622]
[1749928178645,0.7962,2511.0,2510.8,0.79624]
[1749928178837,0.7962,2511.0,2510.4,1.99092]
[1749928178838,0.79624,2510.9,2510.6,1.9836]
[1749928179041,0.79624,2510.9,2510.7,2.14619]
[1749928179042,3.2078,2510.8,2510.7,2.14619]
[1749928179641,3.2078,2511.1,2510.8,0.79624]
[1749928179848,0.79622,2511.0,2510.8,0.79624]
[1749928180049,0.79623,2510.9,2510.7,2.14617]
[1749928180249,0.79623,2510.9,2510.8,0.79626]
[1749928180449,0.79623,2510.9,2510.7,2.14617]
[1749928180650,0.79623,2510.9,2510.8,0.79626]
[1749928180950,0.79629,2510.7,2510.6,1.43003]
[1749928181249,0.79629,2510.7,2510.6,0.6337]
[1749928181446,3.2078,2510.7,2510.4,6.765]
[1749928181646,3.2078,2510.7,2510.2,4.66587492]
[1749928181950,3.2078,2510.7,2510.3,0.7964]
[1749928181951,0.79638,2510.5,2510.3,0.7964]
[1749928182253,0.79638,2510.5,2510.2,4.66587492]
[1749928182254,3.2078,2510.7,2510.2,4.66587492]
[1749928182452,4.00422,2510.3,2510.2,0.07967492]
[1749928182749,3.2078,2510.6,2510.2,0.07967492]
[1749928182949,4.00422,2510.3,2510.2,0.07967492]
[1749928183443,1.99117,2510.2,2509.7,0.79659]
[1749928183751,3.2078,2510.3,2509.6,9.9738]
[1749928183949,0.00597491,2510.2,2509.7,1.289]
[1749928184247,0.80243491,2510.2,2510.1,0.79648]
[1749928184443,0.00597491,2510.2,2510.1,0.79648]
[1749928184945,0.00597491,2510.2,2510.0,0.7965]
[1749928184946,0.79649,2510.1,2510.0,0.7965]
[1749928185147,0.00597491,2510.2,2509.9,1.289]
[1749928185457,3.2078,2511.0,2510.9,0.79623]
[1749928186851,4.004,2511.0,2510.9,0.79623]
[1749928187552,3.2078,2511.0,2510.9,0.79623]
[1749928187738,3.2078,2511.0,2510.7,0.00597491]
[1749928187943,0.79626,2510.8,2510.7,0.00597491]
[1749928188148,1.87691448,2510.8,2510.7,0.00597491]
[1749928188349,0.79645,2510.2,2510.1,0.6862]
[1749928188645,1.99078,2510.7,2510.1,0.6862]
[1749928188646,3.2078,2510.5,2510.1,0.6862]
[1749928188843,3.2078,2510.2,2510.1,0.6862]
[1749928189040,3.2078,2510.2,2510.1,0.79648]
[1749928189242,3.2078,2510.2,2510.0,0.79649]
[1749928189446,0.79648,2510.1,2510.0,0.79649]
[1749928189640,4.00427,2510.2,2510.1,0.79648]
[1749928189840,3.2078,2510.5,2509.9,1.9823]
[1749928190046,3.2078,2510.5,2510.4,0.79639]
[1749928190241,0.79635,2510.6,2510.2,6.768]
[1749928190444,1.45461,2510.7,2510.6,0.79633]
[1749928191151,0.6583,2510.7,2510.6,0.79633]
[1749928191349,0.06809268,2511.0,2510.4,3.8592]
[1749928191545,0.79623,2510.9,2510.7,0.79627]
[1749928191746,0.79623,2510.9,2510.8,0.79626]
[1749928191953,0.86430268,2511.0,2510.9,0.79623]
[1749928192154,1.14899968,2511.0,2510.9,0.79623]
[1749928193140,1.94519968,2511.0,2510.9,0.79623]
[1749928193545,0.79624,2510.9,2510.8,0.79625]
[1749928193845,1.080907,2510.9,2510.8,0.79625]
[1749928194548,1.080907,2510.9,2510.5,1.9269]
[1749928194754,4.00412,2510.6,2510.5,0.6308]
[1749928194951,4.288707,2510.6,2510.5,1.42715]
[1749928195148,1.080907,2510.6,2510.5,1.42715]
[1749928195355,1.0864448,2510.7,2510.5,0.6308]
[1749928195649,0.79623,2510.9,2510.8,0.79624]
[1749928195850,1.08641378,2510.9,2510.8,0.79625]
[1749928197457,4.29421378,2510.9,2510.6,1.2647]
[1749928197645,4.00403,2510.9,2510.8,0.79626]
[1749928197846,4.29629941,2510.9,2510.8,0.79626]
[1749928198246,5.57649109,2510.9,2510.8,0.79626]
[1749928198548,1.08925674,2510.9,2510.8,0.79626]
[1749928199856,1.08925674,2510.9,2510.8,9.00406]
[1749928200043,1.08925674,2510.9,2510.8,0.79626]
[1749928200443,1.08925674,2510.9,2510.8,10.81706]
[1749928200951,1.08925674,2510.9,2510.8,15.81706]
[1749928201557,1.08925674,2510.9,2510.8,7.60926]
[1749928202854,1.08925674,2510.9,2510.8,10.81706]
[1749928203050,1.08925674,2510.9,2510.8,7.60926]
[1749928203648,0.79629,2510.7,2510.6,1.2647]
[1749928203850,1.08925674,2510.7,2510.5,0.6308]
[1749928204148,4.29705674,2510.6,2510.2,6.812]
[1749928204349,0.79646,2510.2,2510.1,0.79647]
[1749928204553,1.08925674,2510.2,2510.1,0.79647]
[1749928205154,1.08925674,2510.2,2510.1,2.07857]
[1749928205750,2.36869109,2510.8,2510.3,1.99102]
[1749928205947,1.09225377,2510.7,2510.6,0.7963]
[1749928206560,1.09225377,2510.7,2510.6,7.6083]
[1749928206763,0.06809268,2510.9,2510.8,0.79626]
[1749928207254,1.16036309,2510.9,2510.8,0.79626]
[1749928209159,4.36816309,2510.9,2510.8,0.79626]
[1749928209355,1.16036309,2510.9,2510.8,0.79626]
[1749928209753,0.79627,2510.8,2510.6,6.812]
[1749928210056,1.09244527,2510.7,2510.6,7.60832]
[1749928210457,1.88873527,2510.7,2510.6,6.812]
[1749928210659,1.09244527,2510.7,2510.4,0.79638]
[1749928210962,1.75794527,2510.6,2510.5,0.79635]
[1749928211559,2.55426527,2510.6,2510.5,0.79635]
[1749928211758,8.09764527,2510.6,2510.2,0.79644]
[1749928211960,4.30024527,2510.5,2510.2,0.79644]
[1749928212157,0.79642,2510.3,2510.2,0.79644]
[1749928212461,1.09244527,2510.3,2510.2,0.79644]
[1749928213167,0.79648,2510.1,2510.0,6.812]
[1749928213368,0.7965,2510.1,2509.9,0.79654]
[1749928213569,1.88799053,2510.1,2510.0,0.79651]
[1749928213760,3.26969053,2510.1,2510.0,0.79651]
[1749928214271,1.09149053,2510.1,2510.0,0.79651]
[1749928216363,1.3817,2510.4,2510.3,0.79642]
[1749928216564,1.09134222,2510.4,2509.8,1.3075]
[1749928216765,1.88777222,2510.3,2510.2,0.79645]
[1749928217264,1.8882057,2510.3,2510.2,0.79645]
[1749928217566,1.0917757,2510.3,2510.2,0.79645]
[1749928217970,1.0917757,2510.3,2509.8,1.3075]
[1749928218265,3.2078,2510.2,2510.0,0.79649]
[1749928218467,3.2078,2510.2,2510.1,0.79648]